bitfinex/quotes_BTCUSD_20220307
["timestamp","ask_amount","ask_price","bid_price","bid_amount"]
[1646688433143,0.1449,37824.0,37822.0,0.1]
[1646688435197,0.1449,37824.0,37820.0,0.29291109]
[1646688436298,0.1449,37824.0,37821.0,0.8088]
[1646688436599,0.1449,37824.0,37820.0,0.29291109]
[1646688437042,0.1449,37824.0,37821.0,0.00014152]
[1646688437848,0.14629091,37824.0,37821.0,0.8088]
[1646688438247,0.14629091,37824.0,37821.0,0.80894152]
[1646688438646,0.14629091,37824.0,37821.0,0.00014152]
[1646688439047,0.14629091,37824.0,37820.0,0.24291109]
[1646688439247,0.14629091,37824.0,37821.0,0.00014157]
[1646688440249,0.14629091,37824.0,37820.0,0.24291109]
[1646688440653,0.14629091,37824.0,37821.0,0.00014157]
[1646688441590,0.14629091,37824.0,37820.0,1.36717393]
[1646688441889,0.14629091,37824.0,37821.0,1.07440441]
[1646688442287,0.14629091,37824.0,37822.0,0.1]
[1646688443189,0.14629091,37824.0,37822.0,0.9088]
[1646688443389,0.14629091,37824.0,37822.0,0.1]
[1646688443609,0.14629091,37824.0,37822.0,0.66106879]
[1646688444838,0.14629091,37824.0,37823.0,0.8088]
[1646688445337,0.001577,37837.0,37825.0,0.55]
[1646688445541,0.21407403,37839.0,37826.0,0.9571]
[1646688445740,0.001577,37841.0,37836.0,0.16854752]
[1646688446142,0.25099743,37847.0,37836.0,0.16854752]
[1646688446143,0.21407403,37845.0,37836.0,0.16854752]
[1646688446338,1.07021105,37849.0,37837.0,0.3]
[1646688446339,0.21407403,37846.0,37837.0,0.3]
[1646688446538,0.21407403,37847.0,37837.0,1.1088]
[1646688446738,0.21407403,37848.0,37837.0,1.1088]
[1646688446936,0.21407403,37848.0,37842.0,0.1813988]
[1646688447135,0.21407403,37849.0,37842.0,0.1813988]
[1646688447341,0.48812911,37849.0,37842.0,0.1813988]
[1646688447538,0.27405508,37849.0,37842.0,0.1813988]
[1646688447936,0.45593225,37850.0,37842.0,0.1813988]
[1646688448137,0.45435525,37850.0,37843.0,0.3]
[1646688448397,0.24028122,37850.0,37843.0,0.3]
[1646688449094,0.0105,37850.0,37843.0,0.3]
[1646688449295,0.0105,37850.0,37842.0,0.1813988]
[1646688449494,0.0105,37850.0,37843.0,0.3]
[1646688449999,0.0105,37850.0,37835.0,0.0132]
[1646688450201,0.27387142,37843.0,37835.0,0.3]
[1646688450398,0.27387142,37843.0,37835.0,0.3132]
[1646688450596,0.27387142,37843.0,37835.0,0.3]
[1646688450998,0.32387142,37843.0,37835.0,0.3]
[1646688451195,0.32387142,37843.0,37833.0,0.3]
[1646688451798,0.25152571,37837.0,37831.0,0.30055178]
[1646688452041,0.25152571,37837.0,37831.0,0.00055178]
[1646688452243,0.05,37836.0,37831.0,0.00055178]
[1646688452437,0.05,37836.0,37823.0,0.3]
[1646688452836,0.05,37836.0,37825.0,0.18240516]
[1646688453037,0.25152571,37837.0,37823.0,0.3]
[1646688453038,0.23332544,37831.0,37823.0,0.3]
[1646688453241,0.23332544,37831.0,37822.0,0.66106879]
[1646688453242,0.31148544,37831.0,37822.0,0.66106879]
[1646688453440,0.36148544,37831.0,37822.0,0.66106879]
[1646688453839,0.36148544,37831.0,37825.0,0.00013121]
[1646688454339,0.066134,37829.0,37825.0,0.00013121]
[1646688454740,0.066134,37829.0,37822.0,0.66106879]
[1646688455038,0.3494633,37831.0,37823.0,0.3]
[1646688455039,0.28332544,37831.0,37823.0,0.3]
[1646688455242,0.05,37831.0,37825.0,0.00013121]
[1646688455440,0.05,37831.0,37825.0,0.30013121]
[1646688455792,0.05,37834.0,37825.0,0.30013121]
[1646688455993,0.05,37834.0,37825.0,0.3]
[1646688456193,0.23907403,37839.0,37825.0,0.30013789]
[1646688456393,0.27993527,37835.0,37825.0,0.30013789]
[1646688456594,0.32993527,37835.0,37825.0,0.30013789]
[1646688456993,0.066124,37833.0,37825.0,0.30013789]
[1646688457194,0.066124,37833.0,37824.0,0.18100302]
[1646688457195,0.066124,37833.0,37823.0,0.3]
[1646688457394,0.066124,37833.0,37818.0,0.0132]
[1646688457395,0.15,37825.0,37818.0,0.21214468]
[1646688457597,0.15,37825.0,37813.0,0.32461758]
[1646688457598,0.89178208,37824.0,37822.0,0.00055396]
[1646688457798,0.03508,37815.0,37813.0,0.00661549]
[1646688457995,0.47814406,37814.0,37813.0,0.00661549]
[1646688458198,0.2790319,37814.0,37813.0,0.00661549]
[1646688458993,0.05,37814.0,37813.0,0.00661549]
[1646688459195,0.05,37815.0,37813.0,0.00661549]
[1646688459394,0.30519115,37814.0,37813.0,0.00661549]
[1646688459641,0.35519115,37814.0,37813.0,0.00661549]
[1646688460942,0.42135415,37814.0,37813.0,0.00661549]
[1646688461140,0.35519115,37814.0,37813.0,0.00661549]
[1646688462141,0.05,37814.0,37813.0,0.00661549]
[1646688462340,0.05159709,37814.0,37813.0,0.00661549]
[1646688462544,0.00159709,37814.0,37813.0,0.00661549]
[1646688463144,0.00159709,37814.0,37813.0,0.29843173]
[1646688463591,0.00074491,37814.0,37813.0,0.29843173]
[1646688464593,0.00074491,37814.0,37813.0,1.10723173]
[1646688464790,0.00074491,37814.0,37813.0,1.20723173]
[1646688464991,0.00074491,37814.0,37813.0,0.39843173]
[1646688465991,0.00074491,37814.0,37813.0,0.29843173]
[1646688466195,0.00074491,37814.0,37813.0,0.39843173]
[1646688466397,0.13228629,37828.0,37813.0,0.39843173]
[1646688466398,0.28775601,37832.0,37814.0,2.4088]
[1646688466599,0.21506668,37835.0,37820.0,0.8088]
[1646688466796,0.32111105,37839.0,37822.0,0.8088]
[1646688466797,0.05,37834.0,37822.0,0.8088]
[1646688467044,0.05,37834.0,37824.0,0.8088]
[1646688467246,0.31223873,37840.0,37831.0,0.16787581]
[1646688467448,0.00012655,37835.0,37833.0,0.066095]
[1646688467650,0.00012655,37835.0,37834.0,0.3]
[1646688467843,0.00012655,37835.0,37834.0,0.4]
[1646688468645,0.00012657,37836.0,37834.0,0.57687756]
[1646688468845,0.00012657,37836.0,37835.0,0.3]
[1646688469246,0.00012657,37836.0,37835.0,0.45]
[1646688469445,0.05,37841.0,37835.0,0.45]
[1646688469746,0.05,37841.0,37835.0,0.15]
[1646688469747,0.00012814,37837.0,37835.0,0.15]
[1646688469947,0.19226466,37837.0,37835.0,0.1]
[1646688470146,0.00012814,37837.0,37835.0,0.1]
[1646688470346,0.00012814,37837.0,37833.0,0.45]
[1646688470546,0.05,37841.0,37833.0,0.35]
[1646688470798,0.00012852,37838.0,37834.0,0.1]
[1646688470991,0.00012852,37838.0,37835.0,0.3]
[1646688471193,0.00012852,37838.0,37835.0,0.49333478]
[1646688471587,0.00012852,37838.0,37836.0,0.1]
[1646688471789,0.05,37841.0,37837.0,0.3]
[1646688473997,0.05,37841.0,37837.0,0.35]
[1646688474190,0.05,37841.0,37838.0,0.1]
[1646688474390,0.05,37841.0,37839.0,0.3]
[1646688474391,0.05014945,37841.0,37839.0,0.3]
[1646688474642,0.00014945,37841.0,37839.0,0.35]
[1646688474843,0.00014945,37841.0,37840.0,0.4]
[1646688475242,0.062078,37850.0,37840.0,0.4]
[1646688475442,0.49146169,37850.0,37842.0,0.18587021]
[1646688475646,0.112078,37850.0,37843.0,0.3]
[1646688476046,0.062078,37850.0,37843.0,0.3]
[1646688476243,0.062078,37850.0,37844.0,0.066079]
[1646688476444,0.062078,37850.0,37845.0,0.3]
[1646688476944,0.00015085,37848.0,37842.0,0.23587021]
[1646688477145,0.00015085,37848.0,37842.0,0.33587021]
[1646688477344,0.00015085,37848.0,37842.0,0.15]
[1646688477745,0.24619681,37849.0,37842.0,0.15]
[1646688477945,0.00015086,37847.0,37842.0,0.15]
[1646688478386,0.00015086,37847.0,37842.0,0.24256478]
[1646688478888,0.24719681,37849.0,37842.0,0.34256478]
[1646688479089,0.00015086,37846.0,37842.0,0.34256478]
[1646688479291,0.00015086,37846.0,37842.0,0.15]
[1646688479492,0.00015086,37846.0,37838.0,0.0132]
[1646688479691,0.00015086,37846.0,37831.0,0.503]
[1646688479894,0.00015086,37846.0,37831.0,0.4662]
[1646688480090,0.51107406,37849.0,37831.0,0.4662]
[1646688480293,0.27213152,37843.0,37831.0,0.86403921]
[1646688480491,0.27213152,37843.0,37831.0,0.2443357]
[1646688480690,0.21419469,37844.0,37832.0,0.8088]
[1646688481090,0.21419469,37844.0,37832.0,1.04144441]
[1646688481295,0.21404383,37844.0,37836.0,0.20156883]
[1646688481592,0.00015087,37840.0,37836.0,0.20156883]
[1646688481791,0.00015087,37840.0,37838.0,0.26022386]
[1646688482050,0.00015087,37840.0,37839.0,0.26333994]
[1646688482246,0.00015087,37840.0,37839.0,0.19694354]
[1646688482444,0.00015087,37840.0,37839.0,0.24524354]
[1646688483146,0.00015086,37841.0,37839.0,0.24524354]
[1646688483445,0.00015086,37841.0,37840.0,0.09694354]
[1646688483646,0.00015086,37841.0,37840.0,0.14694354]
[1646688483849,0.05,37848.0,37840.0,0.14694354]
[1646688484046,0.00013977,37842.0,37840.0,0.05]
[1646688484246,0.00013977,37842.0,37841.0,0.09694354]
[1646688484447,0.00013977,37842.0,37841.0,0.44176258]
[1646688484750,0.00013977,37842.0,37841.0,0.80033303]
[1646688484947,0.0105,37850.0,37841.0,0.80033303]
[1646688485147,0.0105,37850.0,37843.0,0.06608]
[1646688485347,0.0105,37850.0,37846.0,0.20078181]
[1646688485547,0.0105,37850.0,37847.0,0.3483]
[1646688485791,0.0105,37850.0,37848.0,0.1]
[1646688485995,0.0105,37850.0,37849.0,0.3483]
[1646688486191,0.0105,37850.0,37849.0,1.2071]
[1646688486394,0.0001,37850.0,37849.0,0.4983]
[1646688486692,0.00022643,37850.0,37849.0,0.53056686]
[1646688486894,0.00022643,37850.0,37849.0,0.83574868]
[1646688487093,0.00022643,37850.0,37849.0,0.90181268]
[1646688487292,0.00022643,37850.0,37849.0,1.71087681]
[1646688487492,0.0001,37850.0,37849.0,1.40569499]
[1646688487695,0.0001,37850.0,37849.0,0.49856413]
[1646688487895,0.0001,37850.0,37849.0,0.0483]
[1646688488094,0.04734593,37848.0,37841.0,0.0999]
[1646688488495,0.28558149,37848.0,37842.0,0.3]
[1646688488899,0.19350341,37845.0,37841.0,0.0999]
[1646688489296,0.19350341,37845.0,37839.0,0.3]
[1646688489545,0.19350341,37845.0,37839.0,0.01036093]
[1646688489746,0.19350341,37845.0,37835.0,0.07482]
[1646688489946,0.26950892,37840.0,37835.0,0.0483]
[1646688490147,9.553e-05,37844.0,37835.0,0.0483]
[1646688491146,0.19350341,37845.0,37835.0,0.0483]
[1646688491454,0.00015029,37841.0,37839.0,0.22074161]
[1646688491646,0.00015029,37841.0,37839.0,0.27074161]
[1646688492148,0.00015029,37841.0,37839.0,0.56161646]
[1646688492348,0.04734593,37848.0,37840.0,0.16607399]
[1646688492547,0.04734593,37848.0,37841.0,0.02652]
[1646688492548,0.00015028,37842.0,37841.0,0.02652]
[1646688492750,0.00015028,37842.0,37841.0,0.17176354]
[1646688492947,0.00015028,37842.0,37841.0,0.22176354]
[1646688493149,0.00015028,37842.0,37841.0,0.52061799]
[1646688493389,0.04734593,37848.0,37841.0,0.63667563]
[1646688493593,0.04734593,37848.0,37847.0,0.21508179]
[1646688493790,0.04734593,37848.0,37847.0,0.24694354]
[1646688494188,0.04734593,37848.0,37847.0,0.27200137]
[1646688494390,0.04734593,37848.0,37847.0,0.24694354]
[1646688494989,0.04734593,37848.0,37847.0,0.14694354]
[1646688495189,0.04734593,37848.0,37847.0,0.24694354]
[1646688495388,0.04734593,37848.0,37847.0,0.41210699]
[1646688495791,0.04734593,37848.0,37847.0,0.71210699]
[1646688497042,0.04734593,37848.0,37847.0,0.78692699]
[1646688497241,0.04734593,37848.0,37847.0,0.76040699]
[1646688497440,0.04734593,37848.0,37847.0,0.96020699]
[1646688497649,0.05,37863.0,37852.0,0.066059]
[1646688497650,0.23283784,37863.0,37852.0,0.066059]
[1646688497842,0.23283784,37863.0,37853.0,0.52619646]
[1646688498239,0.26487725,37867.0,37853.0,0.55955863]
[1646688498641,0.06396923,37865.0,37853.0,0.60955863]
[1646688498841,0.18464431,37864.0,37853.0,0.60955863]
[1646688499249,0.47728308,37864.0,37853.0,0.60955863]
[1646688499442,0.066062,37863.0,37853.0,0.60955863]
[1646688499943,0.12677265,37863.0,37853.0,0.67561863]
[1646688500143,0.066062,37863.0,37853.0,0.67561863]
[1646688500544,0.066062,37863.0,37853.0,0.60955863]
[1646688500806,0.066062,37863.0,37853.0,0.3983]
[1646688501009,0.066062,37863.0,37853.0,0.0483]
[1646688501010,0.28903148,37857.0,37853.0,0.0483]
[1646688501205,0.35511448,37857.0,37844.0,1.2738]
[1646688501404,0.35511448,37857.0,37838.0,0.0483]
[1646688501405,0.05,37855.0,37838.0,0.0483]
[1646688501603,0.3,37854.0,37837.0,0.02835201]
[1646688501806,0.27583436,37845.0,37838.0,0.19555306]
[1646688502005,0.27583436,37845.0,37835.0,0.03906029]
[1646688502205,0.53757017,37845.0,37835.0,0.03906029]
[1646688502408,2.27414425,37842.0,37833.0,0.02832744]
[1646688502608,0.3,37841.0,37830.0,0.006]
[1646688503007,0.17806209,37833.0,37830.0,0.006]
[1646688503206,0.07242729,37831.0,37830.0,0.006]
[1646688504004,0.07242729,37831.0,37827.0,0.00014029]
[1646688504409,0.31190653,37832.0,37823.0,0.17474303]
[1646688504844,0.31190653,37832.0,37820.0,0.05]
[1646688505046,0.31190653,37832.0,37816.0,0.50448836]
[1646688505047,0.06612,37830.0,37816.0,0.50448836]
[1646688505247,0.06612,37830.0,37817.0,0.066116]
[1646688505647,0.31190653,37832.0,37817.0,0.066116]
[1646688505948,0.03722276,37831.0,37822.0,0.20053795]
[1646688506347,0.07452361,37831.0,37822.0,0.48623413]
[1646688506547,0.07452361,37831.0,37822.0,0.53623413]
[1646688506958,0.1117763,37831.0,37825.0,0.00014999]
[1646688507347,0.14933828,37831.0,37825.0,0.00014999]
[1646688507848,0.14933828,37831.0,37823.0,0.166108]
[1646688508047,0.14933828,37831.0,37826.0,0.00014999]
[1646688509090,0.14933828,37831.0,37823.0,0.1]
[1646688509503,0.14933828,37831.0,37827.0,0.00014999]
[1646688509693,0.14933828,37831.0,37828.0,0.32176584]
[1646688510094,0.14933828,37831.0,37828.0,0.37176584]
[1646688510795,0.14933828,37831.0,37830.0,0.18321362]
[1646688510992,0.14933828,37831.0,37828.0,0.37176584]
[1646688511192,0.14933828,37831.0,37828.0,0.32176584]
[1646688511392,0.14933828,37831.0,37827.0,0.00014999]
[1646688511596,0.14933828,37831.0,37826.0,0.03287375]
[1646688511793,0.14933828,37831.0,37827.0,0.00014451]
[1646688512240,0.14933828,37831.0,37827.0,0.05014451]
[1646688512740,0.14933828,37831.0,37827.0,0.166101]
[1646688512940,0.14433828,37831.0,37827.0,0.16624551]
[1646688513541,0.14433828,37831.0,37828.0,0.19781425]
[1646688513739,0.14433828,37831.0,37828.0,0.24781425]
[1646688514740,0.14433828,37831.0,37828.0,0.05]
[1646688515141,0.14433828,37831.0,37827.0,0.2556257]
[1646688515343,0.14433828,37831.0,37827.0,0.08966427]
[1646688516096,0.14433828,37831.0,37827.0,0.05013957]
[1646688516298,0.14433828,37831.0,37827.0,0.066105]
[1646688516496,0.14433828,37831.0,37827.0,0.06624457]
[1646688517498,0.14433828,37831.0,37827.0,0.066105]
[1646688517698,0.14433828,37831.0,37827.0,0.06624457]
[1646688517900,0.14433828,37831.0,37827.0,0.00013957]
[1646688518098,0.14433828,37831.0,37830.0,0.09694354]
[1646688518299,0.14433828,37831.0,37830.0,0.14694354]
[1646688519639,0.23007978,37840.0,37838.0,0.11386937]
[1646688520437,0.41010871,37840.0,37838.0,0.11386937]
[1646688520837,0.23007978,37840.0,37838.0,0.11386937]
[1646688522442,0.43007978,37840.0,37838.0,0.11386937]
[1646688525393,1.45,37839.0,37833.0,0.05]
[1646688525593,1.45,37839.0,37822.0,0.4459]
[1646688525594,0.29939859,37830.0,37822.0,0.4459]
[1646688526394,0.16555504,37828.0,37822.0,0.4459]
[1646688526596,0.29939859,37830.0,37822.0,0.4459]
[1646688527246,0.23327859,37830.0,37823.0,0.1]
[1646688527648,0.23327859,37830.0,37822.0,0.4459]
[1646688527649,0.21929778,37828.0,37822.0,0.4459]
[1646688527947,0.23327859,37830.0,37822.0,0.4459]
[1646688528347,0.29939959,37830.0,37822.0,0.4459]
[1646688528547,0.15815829,37827.0,37822.0,0.4459]
[1646688528748,0.29939959,37830.0,37822.0,0.4459]
[1646688528946,0.24001835,37832.0,37822.0,0.4459]
[1646688529147,0.24001835,37832.0,37822.0,0.4959]
[1646688529547,0.30613635,37832.0,37822.0,0.4959]
[1646688529749,0.30613635,37832.0,37822.0,0.05]
[1646688529750,0.20182325,37828.0,37822.0,0.05]
[1646688529950,0.20182325,37828.0,37825.0,0.00013669]
[1646688530786,0.23747716,37830.0,37825.0,0.00013669]
[1646688530989,0.06612,37830.0,37825.0,0.00014441]
[1646688531191,0.00014438,37832.0,37825.0,0.00014441]
[1646688531788,0.16805822,37830.0,37825.0,0.00014441]
[1646688531991,0.25577798,37831.0,37820.0,0.153]
[1646688532191,0.1783,37837.0,37824.0,0.09694354]
[1646688532392,0.2,37840.0,37828.0,0.09694354]
[1646688532393,0.00014438,37832.0,37828.0,0.09694354]
[1646688532595,0.00014438,37832.0,37831.0,0.09694354]
[1646688532789,0.00014438,37832.0,37831.0,0.44524354]
[1646688532990,0.00014438,37832.0,37831.0,0.65492171]
[1646688533197,0.00014438,37832.0,37831.0,0.80492171]
[1646688533392,0.2,37840.0,37831.0,0.80492171]
[1646688533393,0.2,37840.0,37834.0,0.066088]
[1646688533594,0.2,37840.0,37835.0,0.3]
[1646688533792,0.2,37840.0,37835.0,0.45]
[1646688534645,0.185,37840.0,37835.0,0.516092]
[1646688534843,0.00014381,37839.0,37835.0,0.516092]
[1646688535249,0.00014381,37839.0,37836.0,0.0483]
[1646688535444,0.00014381,37839.0,37838.0,0.18347369]
[1646688535644,0.00014381,37839.0,37838.0,0.53177369]
[1646688535844,0.185,37840.0,37838.0,0.64785569]
[1646688536045,0.185,37840.0,37839.0,0.3]
[1646688536246,0.185,37840.0,37839.0,0.3483]
[1646688537145,0.185,37840.0,37839.0,0.57039641]
[1646688537548,0.185,37840.0,37839.0,0.79385995]
[1646688537752,0.185,37840.0,37839.0,0.87044033]
[1646688537953,0.185,37840.0,37839.0,0.82044033]
[1646688538398,0.73392861,37855.0,37845.0,0.8088]
[1646688538598,0.21487725,37856.0,37849.0,0.8088]
[1646688538794,0.26859656,37858.0,37850.0,1.2571]
[1646688538795,0.21487725,37858.0,37850.0,1.2571]
[1646688538993,0.21487725,37859.0,37850.0,1.2571]
[1646688539293,0.21487725,37860.0,37850.0,1.2571]
[1646688539495,0.32044107,37854.0,37850.0,0.4483]
[1646688539694,0.32044107,37854.0,37853.0,0.90574354]
[1646688539894,0.32044107,37854.0,37853.0,0.95404354]
[1646688540096,0.32044107,37854.0,37853.0,0.14524354]
[1646688541493,0.32044107,37854.0,37853.0,0.09694354]
[1646688541693,0.00012411,37855.0,37853.0,0.09694354]
[1646688542048,0.21487725,37857.0,37849.0,0.8088]
[1646688542243,0.00012524,37855.0,37851.0,0.8088]
[1646688542444,0.00012524,37855.0,37852.0,0.3]
[1646688543044,0.37555689,37859.0,37853.0,0.8088]
[1646688543045,0.21487725,37859.0,37853.0,0.8088]
[1646688543245,0.26859656,37861.0,37855.0,0.8088]
[1646688543246,0.21487725,37861.0,37855.0,0.8088]
[1646688543446,0.21487725,37862.0,37857.0,0.8088]
[1646688544043,0.22187288,37860.0,37856.0,0.0483]
[1646688544245,0.21487725,37858.0,37856.0,0.0483]
[1646688545149,0.21487725,37857.0,37856.0,0.0483]
[1646688545350,0.21487725,37857.0,37841.0,0.461]
[1646688545351,0.066086,37855.0,37849.0,0.0483]
[1646688545546,0.29879893,37850.0,37841.0,0.8014843]
[1646688545799,0.29879893,37850.0,37842.0,0.3]
[1646688545993,0.47387292,37850.0,37842.0,0.48501263]
[1646688546390,0.47387292,37850.0,37842.0,0.3]
[1646688546593,0.06608,37849.0,37842.0,0.3]
[1646688546994,0.00012702,37848.0,37842.0,0.3]
[1646688547291,0.00012702,37848.0,37841.0,0.0354843]
[1646688547492,0.132176,37847.0,37841.0,0.0354843]
[1646688548092,0.00012702,37846.0,37841.0,0.0354843]
[1646688549096,0.066085,37847.0,37841.0,0.0354843]
[1646688549292,0.00012707,37845.0,37841.0,0.0354843]
[1646688549539,0.00012707,37845.0,37844.0,0.09694354]
[1646688549840,0.06621507,37845.0,37841.0,0.00705973]
[1646688550240,0.066088,37845.0,37841.0,0.00705973]
[1646688550443,0.066088,37845.0,37839.0,0.35]
[1646688550645,0.066088,37845.0,37837.0,0.3]
[1646688550841,0.066088,37845.0,37837.0,0.45]
[1646688550842,0.25303673,37844.0,37837.0,0.45]
[1646688551643,0.00012714,37842.0,37837.0,0.45]
[1646688552245,0.00012714,37842.0,37837.0,0.4]
[1646688552446,0.00012714,37842.0,37837.0,0.4632]
[1646688552645,0.21490229,37850.0,37841.0,0.3153326]
[1646688552849,0.31859656,37853.0,37841.0,0.3153326]
[1646688552850,0.21490229,37851.0,37843.0,0.8088]
[1646688553053,0.05,37853.0,37837.0,0.1632]
[1646688553054,0.3,37850.0,37837.0,0.1632]
[1646688553294,0.21490229,37849.0,37837.0,0.1632]
[1646688553493,0.41317629,37849.0,37837.0,0.1]
[1646688553692,0.21490229,37848.0,37837.0,0.1]
[1646688553891,0.29028237,37840.0,37837.0,0.1]
[1646688554093,0.35638337,37840.0,37833.0,0.05]
[1646688554291,0.066101,37840.0,37833.0,0.15]
[1646688555092,0.19509736,37835.0,37832.0,0.00012175]
[1646688555298,0.366113,37834.0,37832.0,0.00012175]
[1646688555498,0.066113,37834.0,37832.0,0.00012175]
[1646688556094,0.30306957,37833.0,37832.0,0.00012175]
[1646688556295,0.36919357,37833.0,37832.0,0.00012175]
[1646688556494,0.30306957,37833.0,37832.0,0.00012175]
[1646688556694,0.30806957,37833.0,37832.0,0.00012175]
[1646688557346,0.72419057,37833.0,37832.0,0.00012175]
[1646688557555,0.06623029,37830.0,37825.0,0.00012717]
[1646688557846,0.05,37828.0,37825.0,0.00012717]
[1646688558042,0.05,37828.0,37821.0,0.00050872]
[1646688558043,0.15325202,37827.0,37821.0,0.00050872]
[1646688558246,0.23420209,37825.0,37821.0,0.00050872]
[1646688558444,0.47866047,37825.0,37821.0,0.00050872]
[1646688558744,0.47866047,37825.0,37816.0,0.001]
[1646688558745,0.26190518,37819.0,37816.0,0.001]
[1646688558943,0.182288,37819.0,37816.0,0.001]
[1646688559243,0.20734865,37818.0,37816.0,0.001]
[1646688559644,0.182288,37819.0,37816.0,0.001]
[1646688559645,0.116144,37819.0,37816.0,0.001]
[1646688560047,0.066144,37819.0,37816.0,0.001]
[1646688560647,0.068144,37819.0,37816.0,0.001]
[1646688561308,0.068144,37819.0,37816.0,0.00114071]
[1646688561907,0.066144,37819.0,37816.0,0.00114071]
[1646688562310,0.066144,37819.0,37816.0,0.001]
[1646688562509,0.066144,37819.0,37816.0,0.00114071]
[1646688562710,0.067144,37819.0,37816.0,0.31371853]
[1646688562911,0.001,37819.0,37816.0,0.00114071]
[1646688563414,0.001,37819.0,37818.0,0.14]
[1646688563610,0.001,37819.0,37818.0,0.54126517]
[1646688563813,0.001,37819.0,37818.0,1.50006517]
[1646688564012,9.129e-05,37830.0,37818.0,1.52740361]
[1646688564211,0.05,37829.0,37818.0,1.33740361]
[1646688564414,0.05,37829.0,37818.0,1.09356226]
[1646688564664,0.05,37829.0,37816.0,0.001]
[1646688564665,0.06221369,37827.0,37816.0,0.001]
[1646688564866,0.06613555,37823.0,37816.0,0.001]
[1646688565262,0.06221369,37827.0,37816.0,0.001]
[1646688565462,0.25507416,37821.0,37816.0,0.001]
[1646688565663,0.25507416,37821.0,37816.0,0.17335191]
[1646688566464,0.066136,37826.0,37816.0,0.001]
[1646688566664,0.066136,37826.0,37814.0,0.098]
[1646688566665,0.2161359,37823.0,37814.0,0.098]
[1646688567266,0.2822699,37823.0,37819.0,0.00014971]
[1646688567568,0.18475903,37821.0,37819.0,0.00014971]
[1646688568295,0.18475903,37821.0,37813.0,0.00259892]
[1646688568296,0.18475903,37821.0,37813.0,0.002]
[1646688568497,0.066138,37820.0,37818.0,0.00014971]
[1646688569494,0.066138,37820.0,37813.0,0.002]
[1646688569795,0.066138,37820.0,37817.0,0.00014978]
[1646688570596,0.066138,37820.0,37813.0,0.002]
[1646688570799,0.066138,37820.0,37817.0,0.00014978]
[1646688571598,0.19866927,37821.0,37817.0,0.00014978]
[1646688571798,0.325851,37828.0,37820.0,0.14]
[1646688572048,0.325851,37828.0,37813.0,0.8108]
[1646688572049,0.05,37829.0,37818.0,0.0483]
[1646688572445,0.05,37829.0,37818.0,0.8571]
[1646688572646,0.05,37829.0,37818.0,0.923217]
[1646688572846,0.05,37829.0,37820.0,0.18159127]
[1646688572847,0.2209368,37828.0,37820.0,0.18159127]
[1646688573247,0.2209368,37828.0,37822.0,0.0001438]
[1646688573447,0.2709368,37828.0,37822.0,0.0001438]
[1646688574046,0.05489026,37827.0,37822.0,0.0001438]
[1646688574346,0.05489026,37827.0,37816.0,0.04115557]
[1646688574347,0.05489026,37827.0,37816.0,0.0405803]
[1646688574548,0.05489026,37827.0,37823.0,0.00014379]
[1646688574749,0.2709368,37828.0,37823.0,0.00014379]
[1646688575151,0.30606981,37824.0,37823.0,0.00014379]
[1646688575551,0.30606981,37824.0,37817.0,0.004]
[1646688575793,0.06173918,37822.0,37817.0,0.004]
[1646688575993,0.06173918,37822.0,37818.0,0.00055799]
[1646688576194,0.24848448,37822.0,37818.0,0.00055799]
[1646688576500,0.1867453,37822.0,37818.0,0.00055799]
[1646688576694,0.1867453,37822.0,37814.0,0.176128]
[1646688576896,0.1867453,37822.0,37812.0,0.001]
[1646688576897,0.1867453,37822.0,37818.0,0.00013948]
[1646688577693,0.066133,37823.0,37818.0,0.00013948]
[1646688577893,0.066133,37823.0,37813.0,0.002]
[1646688578095,0.066133,37823.0,37818.0,0.00013948]
[1646688578896,0.25564074,37823.0,37818.0,0.00013948]
[1646688579099,0.25564074,37823.0,37814.0,0.1]
[1646688579298,0.25564074,37823.0,37819.0,0.00014012]
[1646688579745,0.066133,37823.0,37819.0,8.012e-05]
[1646688580347,0.066133,37823.0,37814.0,0.8088]
[1646688580548,0.0660664,37823.0,37813.0,0.102]
[1646688580747,0.16902313,37822.0,37813.0,0.31230629]
[1646688580946,0.0660664,37823.0,37813.0,1.17110629]
[1646688581150,0.116124,37828.0,37813.0,1.17110629]
[1646688581350,0.05,37828.0,37813.0,1.17110629]
[1646688581554,0.25,37829.0,37815.0,0.8088]
[1646688581757,0.25,37829.0,37817.0,0.8088]
[1646688581758,0.2,37829.0,37817.0,0.8088]
[1646688581949,0.2,37829.0,37825.0,0.16936955]
[1646688582152,0.2,37829.0,37826.0,0.0529]
[1646688583400,0.2,37829.0,37819.0,0.00021743]
[1646688583599,0.05,37828.0,37819.0,0.00021743]
[1646688583999,0.15,37828.0,37818.0,0.0529]
[1646688584200,0.15,37828.0,37815.0,0.48557187]
[1646688584203,0.31841191,37818.0,37815.0,0.48557187]
[1646688584403,0.31841191,37818.0,37813.0,0.002]
[1646688584404,0.31841191,37818.0,37817.0,0.14]
[1646688584599,0.31841191,37818.0,37816.0,0.00059919]
[1646688584600,0.36841191,37818.0,37816.0,0.00059919]
[1646688585200,0.18499771,37815.0,37813.0,0.002]
[1646688586401,0.31835224,37817.0,37813.0,0.002]
[1646688587850,0.17507658,37816.0,37813.0,0.00214979]
[1646688588553,0.22507658,37816.0,37813.0,0.00214979]
[1646688588755,0.22507658,37816.0,37813.0,0.002]
[1646688588950,0.29123258,37816.0,37813.0,0.00213405]
[1646688589553,0.22507658,37816.0,37813.0,0.00213405]
[1646688589952,0.05,37816.0,37813.0,0.00213405]
[1646688590153,0.05,37816.0,37813.0,0.002]
[1646688590352,0.36835224,37817.0,37813.0,0.002]
[1646688591093,0.16473242,37816.0,37813.0,0.002]
[1646688591496,0.16473242,37816.0,37813.0,0.00212794]
[1646688592297,0.61473242,37816.0,37813.0,0.00212794]
[1646688592496,0.68089042,37816.0,37813.0,0.002]
[1646688592694,0.73089042,37816.0,37813.0,0.00212794]
[1646688593394,0.066158,37815.0,37813.0,0.00212794]
[1646688593597,0.15920394,37814.0,37813.0,0.002]
[1646688593793,0.15920394,37814.0,37813.0,0.00213672]
[1646688594650,0.15920394,37814.0,37811.0,0.001]
[1646688594651,0.98761133,37813.0,37811.0,0.001]